Cogmind - Beta 13 @@@ ROGUE MODE // 2024.04.25 @ 21:23:30 Player: Alphabethead Result: Destroyed by D-53 Grenadier with Mini Grenade Launcher Performance ------------- Evolutions (0) 0 Regions Visited (2) 400 Robots Destroyed (25) 125 Value Destroyed (640) 640 Prototype IDs (0) 0 Alien Tech Used (0) 0 Bonus (0) 0 TOTAL SCORE: 1165 Bonus ------- None Cogmind --------- Core Integrity 0/250 Matter 300/300 Energy 240/240 System Corruption 1% Temperature Cool (0) Movement Rolling (95) Ox1 Location -10/Mines Parts ------- > --- POWER (1) -------- Nuclear Core > --- PROPULSION (2) --- Wheel Wheel > --- UTILITY (2) ------ Large Storage Unit Improved Signal Interpreter > --- WEAPON (2) ------- Medium Laser Heavy Assault Rifle > --- INVENTORY (15) --- Light Nuclear Core Compact Wheel Improved Heat Sink High-capacity Storage Unit Compact Matter Pod (150) Sensor Array Seismic Detector Advanced Targeting Computer Light Armor Plating Hacking Suite Ion Cannon Assault Rifle Grenade Launcher Datajack Peak State ------------ > --- POWER ------------ Nuclear Core > --- PROPULSION ------- Wheel Wheel > --- UTILITY ---------- Large Storage Unit Improved Signal Interpreter > --- WEAPON ----------- Medium Laser Ion Cannon > --- INVENTORY -------- Ion Engine Compact Wheel Heat Sink Improved Heat Sink Compact Matter Pod Sensor Array Seismic Detector Advanced Targeting Computer Light Armor Plating Hacking Suite EM Pulse Gun Grenade Launcher Datajack [Rating: 15] Favorites ----------- Power Ion Engine Engine Ion Engine Power Core Nuclear Core Propulsion Wheel Wheel Wheel Utility Large Storage Unit Device Improved Heat Sink Storage Large Storage Unit Processor Improved Signal Interpreter Weapon Medium Laser Energy Gun Medium Laser Energy Cannon Beam Cannon Ballistic Gun Heavy Assault Rifle Launcher Grenade Launcher Build | -11 -10 -10 ------- Run | Yrd Mat Min Slots Evolved . | . . . Power . | . . . Propulsion . | . . . Utility . | . . . Weapon . | . . . Parts Attached 22 | 6 7 9 Power 4 | 1 1 2 Engine 3 | 1 1 1 Core 1 | . . 1 Reactor . | . . . Propulsion 5 | 2 2 1 Treads . | . . . Leg . | . . . Wheel 5 | 2 2 1 Hover . | . . . Flight . | . . . Utility 5 | 1 3 1 Device 1 | . 1 . Storage 2 | 1 1 . Processor 2 | . 1 1 Hackware . | . . . Protection . | . . . Artifact . | . . . Weapon 8 | 2 1 5 Energy Gun 3 | 2 . 1 Energy Cannon 3 | . 1 2 Ballistic Gun 1 | . . 1 Ballistic Cannon . | . . . Launcher 1 | . . 1 Special Weapon . | . . . Impact Weapon . | . . . Slashing Weapon . | . . . Piercing Weapon . | . . . Special Melee Weapon . | . . . Unidentified Prototypes . | . . . Parts Lost 6 | . 2 4 Power 1 | . . 1 Propulsion 3 | . 2 1 Utility . | . . . Weapon 2 | . . 2 Highest Loss Streak 2 | . 1 2 To Critical Strikes . | . . . Average Slot Usage (%) 98 | . 98 99 Engine 9 | . 14 4 Core 4 | . . 8 Wheel 27 | . 27 27 Device 4 | . 10 . Storage 14 | . 14 14 Processor 8 | . 3 14 Energy Gun 17 | . 21 13 Energy Cannon 8 | . 6 10 Ballistic Gun 1 | . . 2 Naked Turns . | . . . Heaviest Build 35 | 11 31 35 Greatest Support 20 | 20 20 20 Greatest Overweight (x) 3 | . 3 1 Average Overweight (x) . | . . 1 Largest Inventory Capacity 15 | 8 15 15 Average Capacity 14 | 6 13 15 Most Carried 15 | 5 12 15 Average Carried 10 | 2 8 12 Final Capacity 15 | 8 15 15 Final Carried 14 | 2 11 14 Class Distribution -------------------- 98% | Mutant Dominant Class ---------------- Mutant | -10/Materials Mutant | -10/Mines Resources | -11 -10 -10 ----------- Run | Yrd Mat Min Matter Collected 573 | 222 103 248 Remotely . | . . . Salvage Created 846 | . 537 309 Parts 34 | . 21 13 Haulers Intercepted . | . . . Recyclers Shooed 1 | . 1 . Parts Field Recycled . | . . . Retrieved Matter . | . . . Parts Self-Destructed . | . . . Prevented . | . . . Kills | -11 -10 -10 ------- Run | Yrd Mat Min Combat Hostiles Destroyed 39 | . 12 27 Guns 12 | . 7 5 Cannons 9 | . 4 5 AOE 17 | . . 17 Classes Destroyed 6 | . 3 3 Worker 2 | . . 2 Tunneler 1 | . 1 . Watcher 2 | . 2 . Swarmer 5 | . . 5 Grunt 15 | . 12 3 Assembled 19 | . . 19 Best Kill Streak 19 | . 3 19 Combat Bots Only 19 | . 3 19 Max Kills in Single Turn 5 | . 1 5 Gunslinging . | . . . Exploded 5 | . . 5 Melee . | . . . Uniques/NPCs Destroyed . | . . . Combat | -11 -10 -10 -------- Run | Yrd Mat Min Hostile Shots Fired 87 | . 38 49 Missed 18 | . 6 12 Damage Taken 883 | . 386 497 Core 260 | . 109 151 Absorbed by Shields . | . . . Core Remaining (%) 100 | 100 . . Volleys Fired 67 | . 39 28 Largest 2 | . 2 2 Hottest 110 | . 110 110 Shots Fired 128 | . 78 50 Gun 87 | . 61 26 Cannon 34 | . 17 17 Launcher 7 | . . 7 Special . | . . . Kinetic 4 | . . 4 Thermal 117 | . 78 39 Explosive 7 | . . 7 Electromagnetic . | . . . Robot Hit Streak 15 | . 13 15 Robot Miss Streak 3 | . 2 3 Penetration Max . | . . . Secondary Targets . | . . . Shots Hit Robots 84 | . 57 27 Core Hits 73 | . 25 48 Critical Kills . | . . . Critical Parts Destroyed . | . . . Critical Strikes 4 | . 2 2 Burn 4 | . 2 2 Melee Attacks . | . . . Impact . | . . . Slashing . | . . . Piercing . | . . . Sneak Attacks . | . . . Combat Hostiles . | . . . Follow-up Attacks . | . . . Damage Inflicted 2178 | . 775 1403 Guns 736 | . 554 182 Cannons 431 | . 216 215 Explosions 1004 | . . 1004 Melee . | . . . Ramming 7 | . 5 2 Kinetic 14 | . . 14 Thermal 1153 | . 770 383 Explosive 1004 | . . 1004 Electromagnetic . | . . . Impact . | . . . Slashing . | . . . Piercing . | . . . Highest Corruption 1 | . 1 1 Average Corruption 1 | . 1 1 Corruption Purged . | . . . Corruption Blocked . | . . . Effects 7 | . . 7 Matter Fused 2 | . . 2 Heat Flow Errors 2 | . . 2 Energy Discharges 1 | . . 1 Data Loss (minor) 1 | . . 1 Misfires 1 | . . 1 Overload Shots . | . . . Overflow Damage 8 | . . 8 Projectiles . | . . . Explosions 8 | . . 8 Melee . | . . . Knockbacks . | . . . Impact . | . . . Kinetic . | . . . Secondary . | . . . Self-Inflicted Damage 37 | . 2 35 Shots 2 | . . 2 Rammed 2 | . 1 1 Targets Rammed 2 | . 1 1 Kicked . | . . . Crushed . | . . . Highest Temperature 294 | . 165 294 Average Temperature 74 | . 54 86 Received Heat Transfer 355 | . 228 127 Effects 3 | . . 3 Interference 3 | . . 3 Siege Activations . | . . . Robots Corrupted . | . . . Combat Hostiles . | . . . Parts Fried . | . . . Impact Corruptions . | . . . Robots Melted 1 | . 1 . Combat Hostiles 1 | . 1 . Parts Melted 7 | . 4 3 Heat Transferred 3100 | . 2101 999 Parts Sabotaged . | . . . Parts Stolen . | . . . Parts Stripped . | . . . Power Chain Reactions . | . . . Alert | -11 -10 -10 ------- Run | Yrd Mat Min Peak Influence 226 | . 226 192 Initial 29 | . . 29 Average 84 | . 104 68 Maximum Alert Level 1 | . 1 . Low Security (%) 95 | 100 90 100 Level 1 4 | . 9 . Level 2 . | . . . Level 3 . | . . . Level 4 . | . . . Level 5 . | . . . High Security . | . . . Max Security . | . . . Squads Dispatched 5 | . 4 1 Investigation 2 | . 1 1 Extermination . | . . . Reinforcement 3 | . 3 . Assault . | . . . Garrison . | . . . Intercept . | . . . Searches Triggered . | . . . Construction Impeded . | . . . Haulers Reinforced . | . . . Active Scanning Responses . | . . . Cargo Convoy Interrupts . | . . . Stealth | -11 -10 -10 --------- Run | Yrd Mat Min Distress Signals 2 | . 2 . Communications Jammed . | . . . Distress Signals . | . . . Times Spotted 57 | . 21 36 Peak Tracking Total 18 | . 4 18 Tactical Retreats 5 | . . 5 Traps | -11 -10 -10 ------- Run | Yrd Mat Min Traps Triggered 2 | . 2 . Indirectly . | . . . Trap Hack Attempts . | . . . Triggered . | . . . Disarmed . | . . . Reprogrammed 4 | . 4 . Reused . | . . . Traps Extracted . | . . . Installed . | . . . Triggered . | . . . Machines | -11 -10 -10 ---------- Run | Yrd Mat Min Machines Disabled . | . . . Max in Single Turn . | . . . Machines Repaired . | . . . Machines Dismantled . | . . . Machines Sabotaged . | . . . Overloaded Fab Kills . | . . . Hacking | -11 -10 -10 --------- Run | Yrd Mat Min Machines Accessed 5 | . 4 1 Terminals 4 | . 4 . Fabricators . | . . . Repair Stations . | . . . Recycling Units . | . . . Scanalyzers . | . . . Garrison Access . | . . . Total Hacks 18 | . 17 1 Successful 8 | . 7 1 Failed 10 | . 10 . Catastrophic . | . . . Database Lockouts . | . . . Manual . | . . . Terminals 17 | . 17 . Fabricators . | . . . Repair Stations . | . . . Recycling Units . | . . . Scanalyzers . | . . . Garrison Access . | . . . Terminal Hacks 8 | . 7 1 Robot Analysis 1 | . 1 . Open Door 1 | . . 1 Locate Traps 4 | . 4 . Reprogram Traps 1 | . 1 . Hauler Manifests 1 | . 1 . Fabricator Hacks . | . . . Repair Station Hacks . | . . . Recycling Unit Hacks . | . . . Scanalyzer . | . . . Garrison Access Hacks . | . . . Unauthorized Hacks . | . . . Terminals . | . . . Fabricators . | . . . Repair Stations . | . . . Recycling Units . | . . . Scanalyzers . | . . . Garrison Access . | . . . Data Cores Recovered . | . . . Used . | . . . Hacking Detections 4 | . 4 . Full Trace Events . | . . . Feedback Events . | . . . Feedback Blocked . | . . . Robot Schematics Acquired . | . . . Robots Built . | . . . Authchips . | . . . Time . | . . . Total Robot Build Rating . | . . . Part Schematics Acquired . | . . . Parts Built . | . . . Authchips . | . . . Time . | . . . Total Part Build Rating . | . . . Parts Repaired . | . . . Time . | . . . Parts Recycled . | . . . Recycled Matter . | . . . Retrieved Matter . | . . . Retrieved Components . | . . . Parts Scanalyzed . | . . . Part Schematics Acquired . | . . . Parts Damaged . | . . . Bothacking | -11 -10 -10 ------------ Run | Yrd Mat Min Used RIF Installer . | . . . Robots Hacked . | . . . Non-combat . | . . . Combat . | . . . Robot Hacks Applied . | . . . Relay Couplers Released . | . . . Fabnet Peak Effective % . | . . . Robots Rewired . | . . . Allies Hacked . | . . . Hacks Repelled . | . . . Allies | -11 -10 -10 -------- Run | Yrd Mat Min Total Allies . | . . . Largest Group . | . . . Highest-Rated Group . | . . . Highest-Rated Ally . | . . . Total Orders . | . . . Ally Attacks . | . . . Total Damage . | . . . Kills . | . . . Allies Corrupted . | . . . Allies Melted . | . . . Intel | -11 -10 -10 ------- Run | Yrd Mat Min Robot Analysis Total 1 | . 1 . Derelict Logs Recovered 2 | . . 2 Drone Launches . | . . . Drone Recoveries . | . . . Exploration | -11 -10 -10 ------------- Run | Yrd Mat Min Turns Passed 2060 | 46 973 1041 Spaces Moved 1449 | 45 697 707 Core 10 | 10 . . Treads . | . . . Legs . | . . . Wheels 1439 | 35 697 707 Hover . | . . . Flight . | . . . Fastest Speed 50 | 50 80 95 Average Speed 92 | 73 90 95 Slowest Speed 125 | 80 125 95 Overloaded Moves . | . . . Propulsion Burnouts . | . . . Robots Hopped . | . . . Cave-ins Triggered . | . . . Exploration Rate (%) 65 | 4 95 96 Regions Visited 2 Branch Regions 1 Pre-discovered Areas . | . . . Known Exits Taken 1 | . 1 . Unknown Exits Taken 1 | 1 . . Scrap Searched 1 | . . 1 Spaces Dug . | . . . Terrain Destroyed 31 | . . 31 Melee . | . . . Projectile 2 | . . 2 AOE 29 | . . 29 Terrain Rammed . | . . . Walls Destroyed . | . . . Machines Disabled . | . . . Actions | -11 -10 -10 --------- Run | Yrd Mat Min Total 2042 | 57 957 1028 Wait 458 | . 195 263 Move 1447 | 44 696 707 Hop . | . . . Pick Up 35 | 7 15 13 Fast Attach 3 | 1 1 1 Attach 11 | 5 2 4 Detach 1 | . . 1 Swap 8 | . 4 4 Drop 10 | . 4 6 Fire 67 | . 39 28 Melee . | . . . Ram 2 | . 1 1 Kick . | . . . Crush . | . . . Escape Stasis . | . . . Rewire . | . . . Trap . | . . . Miscellaneous . | . . . Route ------- -11/Scrapyard -10/Materials (discovered 5 exits: *Mat x3 / *Min x2) -10/Mines (discovered 3 exits: *Mat x2 / Sub) History --------- Turn | Location | Event 9 | -11/Scrapyard | Discovered new exit (range 14) 47 | -11/Scrapyard | Entered Materials 272 | -10/Materials | Discovered new exit (range 15) 317 | -10/Materials | Build established: Mutant 489 | -10/Materials | Discovered new exit (range 11) 610 | -10/Materials | Discovered new exit (range 7) 770 | -10/Materials | Discovered new exit (range 9) 814 | -10/Materials | Identified exit to Materials 907 | -10/Materials | Discovered exit to Materials (range 15) 976 | -10/Materials | Identified exit to Mines 1020 | -10/Materials | Entered Mines 1021 | -10/Mines | Assembled infested the area 1025 | -10/Mines | Core integrity fell below 50% 1065 | -10/Mines | Destroyed 19 combat bots 1399 | -10/Mines | Met a Derelict shopkeep closing up shop 1466 | -10/Mines | Core integrity fell below 20% 1692 | -10/Mines | Discovered exit to Materials (range 11) 1718 | -10/Mines | Identified exit to Subcaves 1832 | -10/Mines | Joined a pair of Derelicts in attacking an 0b10 outpost 1951 | -10/Mines | Discovered exit to Materials (range 9) 2061 | -10/Mines | Destroyed by D-53 Grenadier with Mini Grenade Launcher Last Messages --------------- 01842_ Acquired 10 matter. 01852_ Acquired Assault Rifle. 01862_ GG-YFK(g): "I guess it's a good idea to hang out here and mop up anything else that comes by." 01916_ Dropped Heat Sink. 01917_ Dropped Imp. Heat Sink. 01918_ Acquired Imp. Heat Sink. 01919_ Dropped Lgt. Nuclear Core. 01921_ Acquired Lgt. Nuclear Core. 01933_ K-01 Serf collects debris. 01951_ EXIT=FOUND: MATERIALS 01953_ Acquired derelict log, extracted data. Exit location confirmed. 02031_ K-01 Serf destroyed. 02032_ Extracted 3 matter. 02047_ S-10 Pest suffers critical hit (Burn). 02047_ S-10 Pest destroyed. 02050_ Acquired 9 matter. 02052_ K-01 Serf collects debris. Map ----- +----------------------------------------------------+ | | | | | | | | | | | | | | | | | | | | | | | | | ?????????????????????????????????????????????????? | | ????????????????###????###???????????????????????? | | ???????????????## #### ##?##############???????? | | ????####???????# ### #???????? | | ???## ######??# """ #???????? | | ???# ##?## """ #???????? | | ??## """ ######## ## #### """ #???????? | | ?## """ ##??# ## #??# """ #???????? | | ?# """ ##?# ## #??# < ####????? | | ?# ### ## #??# #????? | | ??# ## ## ##%#??# ##%#????? | | ??######## u ## ##t########### ######=#????? | | ?????????## d #???# #????#=#????? | | ??????????# [=@ #???# ######%#????? | | ?????????# ###%#### ###?# ## [#?#### | | ?????????# ##?#!#??# #?# ## ####### | | ?????????## #####??# #??# *#?# ## #????# | | ??????????#######??????# #??####%#?# ## #????# # | | ???????????????????????# #???###!#?# ## #????# ## | | ???????????????????????# #???### #?# #????# #? | | ?????????????????????### #??### ### ## ###?## #? | | ???????######?????#### #### ## ## #?# #? | | ??????##" ]"##?#### ## #### ### ##? | | ??????#""!!""### ## #??# ##? | | ??????#%=!![%## %##%#??##### ## | | ??????##!= =## #??????# | | ??????###++## ## #####??????# # | | ????### % #### #??????????## ## | | ???## = ####??## ##???????????# #? | | ???# ## !*%##??????#####????????????# #? | | ???## %##?????????#####??????????# #? | | ????## !##???????#### #??????????# #? | | ????## ##???????## ##?????????# #? | | ????# ##???????# #?????????# #? | | ????# ####???## ##????????# #? | | ????# ## ##### ##???????# #? | | ???# #?## ## #???????# #? | | ??# #??## ### #????????# #? | +----------------------------------------------------+ Best States ------------- Heat Dissipation 39 Energy Generation 14 Energy Capacity 250 Matter Stores 300 Matter Capacity 300 Sight Range 16 Terrain Scan Density 10 Evasion (%) 50 Item Schematics ----------------- None Robot Schematics ------------------ None Fabricated ------------ Nothing Alien Tech Used ----------------- None Achievements -------------- Exterminator Quick And Dirty Challenges ------------ None Game ------ Seed SpliceForceBeam Manual? 0 Play Time 00:22:33 Cumulative 14.0 hours Start 2024.04.25 @ 21:03:17 End 2024.04.25 @ 21:23:30 Sessions 1 Manual Loads 0 Difficulty Rogue Special Mode None Game No. 19 Rogue 19 Adventurer 0 Explorer 0 Win Type - Total 0 Types 0/0/0/0/0/0/0/0/0 Lore% 17 Gallery% 18 Achievement% 17 Wizard Run 0 Options --------- Layout 1 ASCII 0 Keyboard 1 Movement Arrows Keybinds 0 Fullscreen 1 Font 24/Smallcaps Map View 50x35 Zoom Use 0% Tactical HUD 1 Map Filters NONE Filters NONE Steam 1 RUN: 6030cee4-3ec0-4d0b-b33f-a6f2c8ae167d